bitfinex/quotes_BTCUSD_20250226
["timestamp","ask_amount","ask_price","bid_price","bid_amount"]
[1740567367234,0.04528226,89431.0,89430.0,0.278528]
[1740567369540,0.03644564,89431.0,89430.0,0.1108]
[1740567369741,0.03644564,89431.0,89430.0,0.278528]
[1740567370412,0.20417264,89431.0,89430.0,0.1108]
[1740567371791,0.20417264,89431.0,89430.0,0.1048]
[1740567372250,0.20417264,89431.0,89430.0,0.1118]
[1740567372634,0.20417264,89431.0,89430.0,0.1008]
[1740567372833,0.20417264,89431.0,89430.0,0.1058]
[1740567373062,0.20417264,89431.0,89430.0,0.1108]
[1740567373261,0.20417264,89431.0,89430.0,0.1058]
[1740567373467,0.03644564,89431.0,89430.0,0.1088]
[1740567373670,0.03644564,89431.0,89430.0,0.276528]
[1740567374259,0.03644564,89431.0,89430.0,0.273528]
[1740567374464,0.03644564,89431.0,89430.0,0.276528]
[1740567375075,0.03644564,89431.0,89430.0,0.271528]
[1740567375437,0.03644564,89431.0,89430.0,0.276528]
[1740567375864,0.00012525,89431.0,89430.0,0.273528]
[1740567376337,0.00012525,89431.0,89430.0,0.268528]
[1740567376673,0.00012525,89431.0,89430.0,0.273528]
[1740567376990,0.00012525,89431.0,89430.0,0.275528]
[1740567377219,0.00012525,89431.0,89430.0,0.35832408]
[1740567377451,0.00012525,89431.0,89430.0,0.281528]
[1740567378375,0.00012525,89431.0,89430.0,0.274528]
[1740567378502,0.00012525,89431.0,89430.0,0.281528]
[1740567379590,7e-05,89439.0,89431.0,0.223636]
[1740567379797,7e-05,89439.0,89438.0,0.237413]
[1740567379996,7e-05,89439.0,89438.0,0.3608167]
[1740567380197,7e-05,89439.0,89438.0,0.314713]
[1740567382267,7e-05,89439.0,89438.0,0.317713]
[1740567382463,7e-05,89439.0,89438.0,0.322713]
[1740567382869,7e-05,89439.0,89438.0,0.314713]
[1740567383075,7e-05,89439.0,89438.0,0.4132716]
[1740567383213,7e-05,89439.0,89438.0,0.326713]
[1740567385093,7e-05,89439.0,89438.0,0.651813]
[1740567387747,0.0004939,89439.0,89438.0,0.651813]
[1740567388873,0.0004939,89439.0,89438.0,0.644813]
[1740567389053,0.0004939,89439.0,89438.0,0.646813]
[1740567389269,0.0004939,89439.0,89438.0,0.653813]
[1740567390289,0.0004939,89439.0,89438.0,0.78210138]
[1740567390502,0.0004939,89439.0,89438.0,0.653813]
[1740567392690,0.167702,89445.0,89440.0,0.167708]
[1740567392967,0.0242,89474.0,89454.0,0.02]
[1740567393148,0.00054902,89460.0,89454.0,0.02]
[1740567393319,0.00054902,89460.0,89449.0,0.0777]
[1740567393320,0.00054902,89460.0,89459.0,0.02]
[1740567394397,0.16822102,89460.0,89459.0,0.02]
[1740567394856,0.16822102,89460.0,89440.0,0.005]
[1740567394857,0.03739039,89460.0,89454.0,0.02]
[1740567395056,0.167682,89455.0,89454.0,0.02]
[1740567396292,0.167682,89455.0,89454.0,0.023]
[1740567396451,0.167682,89455.0,89454.0,0.02]
[1740567396647,0.167682,89455.0,89454.0,0.023]
[1740567398476,0.167682,89455.0,89454.0,0.028]
[1740567399293,0.167682,89455.0,89454.0,0.0288474]
[1740567407758,0.16768,89456.0,89454.0,0.0288474]
[1740567408008,0.16768,89456.0,89455.0,0.1022]
[1740567409407,0.16768,89456.0,89455.0,0.1052]
[1740567411853,0.16768,89456.0,89455.0,0.1102]
[1740567413123,0.0004237,89457.0,89455.0,0.1102]
[1740567413331,0.0004237,89457.0,89456.0,0.02]
[1740567413539,0.1681017,89457.0,89456.0,0.02]
[1740567415121,0.1681017,89457.0,89456.0,0.025]
[1740567415525,0.1681017,89457.0,89456.0,0.028]
[1740567419155,0.26095439,89460.0,89456.0,0.028]
[1740567419561,0.167678,89457.0,89456.0,0.028]
[1740567419973,0.167678,89457.0,89456.0,0.023]
[1740567420325,0.167678,89457.0,89456.0,0.026]
[1740567420941,0.167678,89457.0,89456.0,0.02]
[1740567421159,0.167678,89457.0,89456.0,0.025]
[1740567421338,0.167678,89457.0,89456.0,0.026]
[1740567422516,0.167678,89457.0,89456.0,0.029]
[1740567422720,0.03739039,89460.0,89456.0,0.029]
[1740567423160,0.00054902,89460.0,89456.0,0.029]
[1740567423701,0.00054902,89460.0,89456.0,0.024]
[1740567423839,0.00054902,89460.0,89456.0,0.02]
[1740567424037,0.0004237,89457.0,89456.0,0.024]
[1740567424220,0.0004237,89457.0,89456.0,0.19168]
[1740567424849,0.0004237,89457.0,89456.0,0.19068]
[1740567425042,0.0004237,89457.0,89456.0,0.18768]
[1740567425250,0.0004237,89457.0,89456.0,0.19568]
[1740567425889,0.0004237,89457.0,89456.0,0.19868]
[1740567426638,0.0004237,89457.0,89456.0,0.19368]
[1740567426842,0.0004237,89457.0,89456.0,0.19868]
[1740567428253,0.0004237,89457.0,89456.0,0.19368]
[1740567428454,0.0004237,89457.0,89456.0,0.18768]
[1740567428700,0.0004237,89457.0,89456.0,0.19468]
[1740567428906,0.0004237,89457.0,89456.0,0.19968]
[1740567431023,0.0004237,89457.0,89456.0,0.032]
[1740567431243,0.0004237,89457.0,89456.0,0.19968]
[1740567431894,0.0004237,89457.0,89456.0,0.032]
[1740567432320,0.0004237,89457.0,89456.0,0.19968]
[1740567432529,0.0004237,89457.0,89456.0,0.032]
[1740567432722,0.0004237,89457.0,89456.0,0.19968]
[1740567433708,0.0004237,89457.0,89456.0,0.032]
[1740567434626,0.01795846,89457.0,89456.0,0.19968]
[1740567435152,0.01795846,89457.0,89456.0,0.28068]
[1740567435328,0.01795846,89457.0,89456.0,0.2815282]
[1740567441408,0.0004237,89457.0,89456.0,0.2815282]
[1740567444469,0.0004237,89457.0,89456.0,0.6066282]
[1740567444847,0.0004237,89457.0,89456.0,0.6518282]
[1740567445756,0.01795714,89457.0,89456.0,0.6518282]
[1740567449081,0.01795714,89457.0,89456.0,0.6448282]
[1740567449425,0.01795714,89457.0,89456.0,0.6518282]
[1740567449624,0.01795714,89457.0,89456.0,0.6468282]
[1740567450037,0.01795714,89457.0,89456.0,0.6518282]
[1740567450656,0.0004237,89457.0,89456.0,0.9518282]
[1740567455221,0.01795664,89457.0,89456.0,0.9518282]
[1740567456781,0.01795664,89457.0,89456.0,0.9398282]
[1740567456903,0.167653,89471.0,89464.0,0.167664]
[1740567457105,0.167653,89471.0,89456.0,0.7791482]
[1740567457106,0.18518603,89471.0,89456.0,0.7861482]
[1740567457301,0.01753303,89471.0,89456.0,0.7861482]
[1740567457516,0.167653,89470.0,89464.0,0.167665]
[1740567457759,0.167654,89470.0,89464.0,0.167664]
[1740567458360,0.18518503,89471.0,89462.0,0.223557]
[1740567458576,0.01753303,89471.0,89462.0,0.223557]
[1740567458786,0.01753303,89471.0,89464.0,0.167664]
[1740567459016,0.167654,89470.0,89464.0,0.167663]
[1740567459200,0.167654,89470.0,89465.0,0.167662]
[1740567459762,0.18518503,89471.0,89466.0,0.167661]
[1740567459986,0.18518503,89471.0,89464.0,0.229552]
[1740567459987,0.167654,89470.0,89465.0,0.167661]
[1740567460395,0.167654,89470.0,89465.0,0.169661]
[1740567460593,0.01795713,89471.0,89465.0,0.002]
[1740567460841,0.01795713,89471.0,89466.0,0.167661]
[1740567461012,0.18560913,89471.0,89466.0,0.16966]
[1740567461233,0.18560913,89471.0,89466.0,0.002]
[1740567461438,0.0004241,89471.0,89466.0,0.002]
[1740567461617,0.0004241,89471.0,89466.0,0.169661]
[1740567461812,0.0004241,89471.0,89466.0,0.002]
[1740567462018,0.0004241,89471.0,89466.0,0.006]
[1740567462019,0.2239601,89471.0,89466.0,0.006]
[1740567462265,0.167657,89469.0,89466.0,0.006]
[1740567462454,0.167657,89469.0,89466.0,0.002]
[1740567462803,0.167657,89469.0,89466.0,0.004]
[1740567463002,0.167655,89470.0,89466.0,0.006]
[1740567463397,0.2239601,89471.0,89465.0,0.167662]
[1740567463627,0.0004241,89471.0,89470.0,0.02]
[1740567464174,0.1680761,89471.0,89470.0,0.02]
[1740567464820,0.0004241,89471.0,89470.0,0.02]
[1740567465061,0.1680761,89471.0,89470.0,0.02]
[1740567465200,0.0004241,89471.0,89470.0,0.02]
[1740567466021,0.01795619,89471.0,89470.0,0.02]
[1740567466430,0.01795619,89471.0,89470.0,0.022]
[1740567466852,0.01795619,89471.0,89470.0,0.026]
[1740567468968,0.18560819,89471.0,89470.0,0.026]
[1740567469577,0.01795619,89471.0,89470.0,0.026]
[1740567471454,0.0004241,89471.0,89470.0,0.026]
[1740567471661,0.1680761,89471.0,89470.0,0.026]
[1740567472476,0.1680761,89471.0,89470.0,0.026848]
[1740567473352,0.0004241,89471.0,89470.0,0.026848]
[1740567475755,0.01795584,89471.0,89470.0,0.026848]
[1740567476306,0.01795584,89471.0,89470.0,0.325401]
[1740567476601,0.01795584,89471.0,89470.0,0.157748]
[1740567477162,0.01795584,89471.0,89470.0,0.153748]
[1740567478168,0.01795584,89471.0,89470.0,0.151748]
[1740567478378,0.01795584,89471.0,89470.0,0.326401]
[1740567478584,0.01795584,89471.0,89470.0,0.163748]
[1740567479024,0.01791584,89471.0,89470.0,0.163748]
[1740567479608,0.01791584,89471.0,89470.0,0.156748]
[1740567479812,0.01791584,89471.0,89470.0,0.158748]
[1740567480183,0.01791584,89471.0,89470.0,0.163748]
[1740567480384,0.01791584,89471.0,89470.0,0.331401]
[1740567481330,0.0003841,89471.0,89470.0,0.331401]
[1740567485895,0.01791474,89471.0,89470.0,0.331401]
[1740567486104,0.1381443,89487.0,89480.0,0.02]
[1740567486301,0.0001252,89487.0,89480.0,0.02]
[1740567486723,0.01752981,89486.0,89481.0,0.167632]
[1740567486899,0.01752981,89486.0,89480.0,0.02]
[1740567487308,0.01752981,89486.0,89485.0,0.187625]
[1740567487683,0.01752981,89486.0,89485.0,0.233025]
[1740567488035,0.01752981,89486.0,89485.0,0.312825]
[1740567489880,0.01752981,89486.0,89485.0,0.637925]
[1740567490357,0.01752981,89486.0,89485.0,0.639925]
[1740567490577,0.01752981,89486.0,89485.0,1.29038196]
[1740567490774,0.01752981,89486.0,89485.0,1.174525]
[1740567491105,0.01752981,89486.0,89485.0,1.481525]
[1740567491305,0.0001252,89487.0,89485.0,1.481525]
[1740567491306,0.0001252,89487.0,89486.0,0.167623]
[1740567491515,0.0001252,89487.0,89486.0,0.29288714]
[1740567491711,0.0001252,89487.0,89486.0,0.291323]
[1740567492319,0.0001252,89487.0,89486.0,0.311323]
[1740567492586,0.0001252,89487.0,89486.0,0.325323]
[1740567493191,0.0001252,89487.0,89486.0,0.318323]
[1740567493377,0.09961131,89497.0,89486.0,0.1577]
[1740567493590,0.01,89500.0,89486.0,0.1577]
[1740567493890,0.167605,89496.0,89491.0,0.167613]
[1740567494193,0.391072,89498.0,89491.0,0.167613]
[1740567494387,0.167603,89497.0,89491.0,0.167613]
[1740567494799,0.01,89500.0,89492.0,0.0826]
[1740567494997,0.01,89500.0,89499.0,0.187599]
[1740567495995,0.02752472,89500.0,89499.0,0.318499]
[1740567496344,0.02752472,89500.0,89499.0,0.325499]
[1740567496565,0.02752472,89500.0,89499.0,0.1649]
[1740567496769,0.19512172,89500.0,89499.0,0.1649]
[1740567497419,0.02752472,89500.0,89499.0,0.1649]
[1740567497971,0.19512172,89500.0,89499.0,0.1649]
[1740567500182,0.02752472,89500.0,89499.0,0.1649]
[1740567500600,0.19512172,89500.0,89499.0,0.1649]
[1740567501467,0.01,89500.0,89499.0,0.034]
[1740567502346,0.177597,89500.0,89499.0,0.034]
[1740567503214,0.01,89500.0,89499.0,0.034]
[1740567503410,0.177597,89500.0,89499.0,0.034]
[1740567503814,0.01,89500.0,89499.0,0.034]
[1740567504368,0.02752578,89500.0,89499.0,0.034]
[1740567505718,0.19512278,89500.0,89499.0,0.034]
[1740567506412,0.21559528,89502.0,89501.0,0.02]
[1740567506600,0.38318928,89502.0,89501.0,0.02]
[1740567508343,0.167594,89502.0,89501.0,0.026]
[1740567508553,0.167594,89502.0,89501.0,0.033]
[1740567510496,0.167594,89502.0,89501.0,0.013]
[1740567510711,0.167594,89502.0,89501.0,0.033]
[1740567511420,0.0004237,89507.0,89506.0,0.187586]
[1740567511658,0.0004237,89507.0,89506.0,0.0995]
[1740567511910,0.00049831,89507.0,89506.0,0.0995]
[1740567512166,0.00049831,89507.0,89506.0,0.267086]
[1740567513043,0.00049831,89507.0,89506.0,0.272086]
[1740567513338,0.00049831,89507.0,89506.0,0.273086]
[1740567513541,0.00049831,89507.0,89506.0,0.280086]
[1740567513742,0.00049831,89507.0,89506.0,0.274086]
[1740567514126,0.00049831,89507.0,89506.0,0.281086]
[1740567515447,0.00049831,89507.0,89506.0,0.267086]
[1740567515638,0.00049831,89507.0,89506.0,0.1065]
[1740567515869,0.00049831,89507.0,89506.0,0.281086]
[1740567529580,0.01802243,89507.0,89506.0,0.281086]
[1740567530656,0.01802243,89507.0,89506.0,0.1135]
[1740567530852,0.00049831,89507.0,89506.0,0.1135]
[1740567532701,0.00049831,89507.0,89506.0,0.281086]
[1740567532855,0.00049831,89507.0,89506.0,0.1135]
[1740567533488,0.16808231,89507.0,89506.0,0.1135]
[1740567534086,0.18560726,89507.0,89506.0,0.1135]
[1740567534262,0.18560726,89507.0,89506.0,0.1065]
[1740567534903,0.18560726,89507.0,89506.0,0.0995]
[1740567535328,0.18560726,89507.0,89506.0,0.1135]
[1740567535713,0.18560726,89507.0,89506.0,0.1065]
[1740567536109,0.18560726,89507.0,89506.0,0.1135]
[1740567538472,0.01802326,89507.0,89506.0,0.1135]
[1740567539387,0.18560726,89507.0,89506.0,0.1135]
[1740567541473,0.16808231,89507.0,89506.0,0.1135]
[1740567542982,0.16808231,89507.0,89506.0,0.034]
[1740567543410,0.16808231,89507.0,89506.0,0.014]
[1740567544626,0.1856076,89507.0,89506.0,0.007]
[1740567545022,0.1856076,89507.0,89506.0,0.013]
[1740567545270,0.1856076,89507.0,89506.0,0.006]
[1740567545605,0.1856076,89507.0,89506.0,0.01]
[1740567548190,0.27128448,89507.0,89506.0,0.01]
[1740567548412,0.1856076,89507.0,89506.0,0.01]
[1740567550997,0.51768231,89507.0,89506.0,1e-06]
[1740567551204,0.52352892,89507.0,89506.0,1e-06]
[1740567551607,0.52352892,89507.0,89506.0,0.004001]
[1740567552068,0.3,89506.0,89502.0,0.0008478]
[1740567552296,0.167592,89503.0,89502.0,0.0008478]
[1740567553529,0.31143396,89505.0,89480.0,0.1463]
[1740567553530,0.167633,89481.0,89480.0,0.1463]
[1740567553736,0.167633,89481.0,89480.0,0.1263]
[1740567553949,0.167638,89478.0,89477.0,0.02]
[1740567554507,0.223496,89487.0,89477.0,0.02]
[1740567554709,0.167638,89478.0,89477.0,0.02]
[1740567555295,0.167638,89478.0,89477.0,0.0201252]
[1740567555498,0.18516814,89478.0,89477.0,0.0241252]
[1740567555699,0.01753014,89478.0,89477.0,0.0241252]
[1740567555921,0.01853014,89478.0,89477.0,0.0251252]
[1740567556091,0.01953014,89478.0,89477.0,0.0321252]
[1740567556296,0.18716814,89478.0,89477.0,0.0321252]
[1740567557315,0.01953014,89478.0,89477.0,0.0321252]
[1740567557522,0.06547149,89478.0,89477.0,0.0321252]
[1740567557723,0.23310949,89478.0,89477.0,0.0321252]
[1740567558960,0.06547149,89478.0,89477.0,0.0321252]
[1740567559562,0.01953014,89478.0,89477.0,0.0321252]
[1740567560512,0.002,89478.0,89477.0,0.3225652]
[1740567563174,0.002,89478.0,89477.0,0.6476652]
[1740567564625,0.002,89478.0,89477.0,0.4800252]
[1740567565701,0.169638,89478.0,89477.0,0.4800252]
[1740567566690,0.169638,89478.0,89477.0,0.3572252]
[1740567567246,0.23305725,89478.0,89477.0,0.0121252]
[1740567567446,0.55725725,89478.0,89477.0,0.0121252]
[1740567567653,0.55725725,89478.0,89477.0,0.0129732]
[1740567568058,0.56210547,89478.0,89477.0,0.0079732]
[1740567568258,0.56310547,89478.0,89477.0,0.0149732]
[1740567568900,0.56310547,89478.0,89477.0,0.0079732]
[1740567568901,0.56210547,89478.0,89477.0,0.0079732]
[1740567569311,0.56210547,89478.0,89477.0,0.0099732]
[1740567569824,0.56310547,89478.0,89477.0,0.0139732]
[1740567570133,0.56310547,89478.0,89477.0,0.0069732]
[1740567570514,0.56510547,89478.0,89477.0,0.0069732]
[1740567570893,0.56210547,89478.0,89477.0,0.0009732]
[1740567571319,0.56110547,89478.0,89477.0,0.0009732]
[1740567571693,0.56310547,89478.0,89477.0,0.0009732]
[1740567572316,0.56410547,89478.0,89477.0,0.0009732]
[1740567572560,0.56610547,89478.0,89477.0,0.0009732]
[1740567572858,0.56910547,89478.0,89477.0,0.0009732]
[1740567573231,0.48148622,89478.0,89477.0,0.0009732]
[1740567574026,0.4990191,89478.0,89477.0,0.0009732]
[1740567576623,0.0313811,89478.0,89477.0,0.0009732]
[1740567576986,0.1990191,89478.0,89477.0,0.0009732]
[1740567578421,0.1970191,89478.0,89477.0,0.0009732]
[1740567578692,0.1910191,89478.0,89477.0,0.0009732]
[1740567578867,0.1960191,89478.0,89477.0,0.0009732]
[1740567579243,0.1940191,89478.0,89477.0,0.0009732]
[1740567579440,0.1960191,89478.0,89477.0,0.0009732]
[1740567579663,0.1970191,89478.0,89477.0,0.0009732]
[1740567580668,0.26146611,89478.0,89477.0,0.0009732]
[1740567581090,0.24393323,89478.0,89477.0,0.0009732]
[1740567581290,0.47948622,89478.0,89477.0,0.0009732]
[1740567581888,0.167638,89478.0,89477.0,0.0803732]
[1740567582098,0.169638,89478.0,89477.0,0.0803732]
[1740567582246,0.170638,89478.0,89477.0,0.0803732]
[1740567582464,0.168638,89478.0,89477.0,0.0803732]
[1740567582687,0.170638,89478.0,89477.0,0.0803732]
[1740567582940,0.169638,89478.0,89477.0,0.0803732]
[1740567583148,0.169638,89478.0,89477.0,0.0813732]
[1740567583470,0.167638,89478.0,89477.0,0.0813732]
[1740567584308,0.167638,89478.0,89477.0,0.1003732]
[1740567584715,0.167638,89478.0,89477.0,0.1013732]
[1740567585873,0.28866214,89479.0,89477.0,0.1033732]
[1740567586079,0.18516857,89478.0,89477.0,0.1043732]
[1740567587161,0.18516857,89478.0,89477.0,0.0843732]
[1740567587520,0.18516857,89478.0,89477.0,0.1043732]
[1740567587738,0.18516857,89478.0,89477.0,0.1013732]
[1740567587978,0.18516857,89478.0,89477.0,0.0019732]
[1740567588179,0.18516857,89478.0,89477.0,0.0039732]
[1740567588734,0.23223753,89478.0,89477.0,0.0019732]
[1740567588906,0.18516857,89478.0,89477.0,0.0049732]
[1740567591448,0.4680621,89478.0,89477.0,0.0049732]
[1740567594654,0.48559395,89478.0,89477.0,0.0049732]
[1740567594855,0.21823873,89478.0,89477.0,0.0049732]
[1740567595074,0.24195369,89478.0,89477.0,0.0049732]
[1740567597015,0.18559395,89478.0,89477.0,0.0049732]
[1740567600825,0.16132686,89479.0,89477.0,2e-07]
[1740567600976,0.18517019,89478.0,89477.0,2e-07]
[1740567601587,0.167652,89471.0,89470.0,0.000848]
[1740567602817,0.48219285,89471.0,89470.0,0.000848]
[1740567602954,0.59604981,89471.0,89470.0,0.000848]
[1740567603636,0.167678,89457.0,89449.0,0.1257]
[1740567605291,0.468678,89457.0,89449.0,0.0775]
[1740567605488,0.468678,89457.0,89443.0,0.0829]
[1740567606588,0.469678,89457.0,89443.0,0.0829]
[1740567608211,0.469678,89457.0,89456.0,2e-07]
[1740567608543,0.167715,89437.0,89436.0,0.0751]
[1740567608787,0.01454085,89448.0,89424.0,0.0806]
[1740567608982,0.167738,89425.0,89424.0,0.0806]
[1740567609185,0.46774,89424.0,89423.0,0.0472478]
[1740567609955,0.52435374,89424.0,89423.0,0.0472478]
[1740567610386,0.5243954,89424.0,89423.0,0.0472478]
[1740567610583,0.5164754,89424.0,89423.0,0.0472478]
[1740567610790,0.5174754,89424.0,89423.0,0.0522478]
[1740567611179,0.49993446,89424.0,89423.0,0.0522478]
[1740567611394,0.49993446,89424.0,89423.0,0.0542478]
[1740567611600,0.50093446,89424.0,89423.0,0.0542478]
[1740567612314,0.49993446,89424.0,89423.0,0.0522478]
[1740567612515,0.49893446,89424.0,89423.0,0.0472478]
[1740567612719,0.49993446,89424.0,89423.0,0.0492478]
[1740567612925,0.50093446,89424.0,89423.0,0.0492478]
[1740567615046,0.04111446,89424.0,89423.0,0.0492478]
[1740567615750,0.05865524,89424.0,89423.0,0.0492478]
[1740567617894,0.06452076,89424.0,89423.0,0.0492478]
[1740567618483,0.05865524,89424.0,89423.0,0.04905539]
[1740567618882,0.01454085,89444.0,89423.0,0.04905539]
[1740567619129,0.01454085,89444.0,89423.0,0.04918061]
[1740567619329,0.01454085,89444.0,89424.0,0.0795]
[1740567619726,0.04757421,89445.0,89424.0,0.0795]
[1740567620108,0.00948,89445.0,89424.0,0.0795]
[1740567620312,0.002,89444.0,89424.0,0.0795]
[1740567621167,0.003,89444.0,89424.0,0.0795]
[1740567621751,0.002,89444.0,89424.0,0.0795]
[1740567621948,0.0242,89442.0,89423.0,0.04718061]
[1740567622161,0.3242,89442.0,89423.0,0.00078061]
[1740567622513,0.35481179,89442.0,89423.0,0.00078061]
[1740567622916,0.3242,89442.0,89423.0,0.00078061]
[1740567623111,0.38243783,89441.0,89423.0,0.00078061]
[1740567623456,0.33061179,89440.0,89423.0,0.00078061]
[1740567624105,0.01454085,89439.0,89423.0,0.00078061]
[1740567625262,0.01754085,89439.0,89423.0,0.00078061]
[1740567626085,0.01737311,89439.0,89423.0,0.00078061]
[1740567626291,0.02531619,89438.0,89423.0,0.00078061]
[1740567627200,0.01754063,89435.0,89423.0,0.00078061]
[1740567628771,0.01854063,89435.0,89423.0,0.00078061]
[1740567629173,0.02054063,89435.0,89423.0,0.00078061]
[1740567630094,0.03061179,89434.0,89423.0,0.00078061]
[1740567630309,0.37205661,89433.0,89423.0,0.00078061]
[1740567632056,0.37605661,89433.0,89423.0,0.00078061]
[1740567632561,0.07605661,89433.0,89423.0,0.00078061]
[1740567633508,0.0747603,89433.0,89423.0,0.00078061]
[1740567634242,0.006,89433.0,89423.0,0.00078061]
[1740567635390,0.01454085,89436.0,89423.0,0.00078061]
[1740567635605,0.005,89433.0,89423.0,0.00078061]
[1740567636593,0.002,89433.0,89423.0,0.00078061]
[1740567637005,0.01454085,89436.0,89423.0,0.00078061]
[1740567637174,0.003,89433.0,89423.0,0.00078061]
[1740567637374,0.005,89433.0,89423.0,0.00078061]
[1740567637760,0.003,89433.0,89423.0,0.00078061]
[1740567638785,0.07489145,89435.0,89423.0,0.00078061]
[1740567638965,0.005,89433.0,89423.0,0.00078061]
[1740567639266,0.07694729,89432.0,89423.0,0.00078061]
[1740567640054,0.01754119,89430.0,89423.0,0.00078061]
[1740567640658,0.07894729,89432.0,89423.0,0.00078061]
[1740567640867,0.002,89432.0,89423.0,0.00078061]
[1740567641042,0.002,89432.0,89425.0,0.0485]
[1740567641746,0.3,89437.0,89425.0,0.0485]
[1740567641906,0.001,89432.0,89425.0,0.0485]
[1740567642065,0.001,89430.0,89425.0,0.0485]
[1740567642543,0.3,89437.0,89425.0,0.0485]
[1740567642687,0.003,89432.0,89425.0,0.0485]
[1740567642894,0.001,89432.0,89425.0,0.0485]
[1740567643291,0.001,89430.0,89425.0,0.0485]
[1740567643513,0.001,89432.0,89425.0,0.0485]
[1740567643918,0.003,89432.0,89425.0,0.0485]
[1740567644128,0.06972724,89431.0,89425.0,0.0485]
[1740567645174,0.0175402,89430.0,89425.0,0.0485]
[1740567646047,0.0185402,89430.0,89425.0,0.0485]
[1740567646456,0.0175402,89430.0,89426.0,0.0808]
[1740567646901,0.3,89437.0,89426.0,0.0808]
[1740567647106,0.3392021,89437.0,89426.0,0.0808]
[1740567648211,0.3392021,89437.0,89426.0,0.0818]
[1740567648603,0.3392021,89437.0,89426.0,0.0808]
[1740567648754,0.3402021,89437.0,89426.0,0.0808]
[1740567649417,0.3412021,89437.0,89426.0,0.0808]
[1740567649630,0.06709265,89436.0,89426.0,0.0808]
[1740567650637,0.03061179,89435.0,89426.0,0.0808]
[1740567651066,0.03061179,89435.0,89425.0,0.0485]
[1740567651265,0.03061179,89435.0,89423.0,0.00078061]
[1740567651694,0.03061179,89435.0,89426.0,0.0008486]
[1740567651895,0.0004243,89433.0,89426.0,0.0008486]
[1740567652476,0.0004243,89433.0,89428.0,0.0461]
[1740567653376,0.0034243,89433.0,89428.0,0.0461]
[1740567653845,0.0064243,89433.0,89428.0,0.0461]
[1740567654569,0.0084243,89433.0,89428.0,0.0461]
[1740567654741,0.07388219,89432.0,89428.0,0.0461]
[1740567656138,0.07588219,89432.0,89428.0,0.0461]
[1740567656594,0.002,89432.0,89428.0,0.0461]
[1740567656797,0.005,89432.0,89428.0,0.0461]
[1740567657003,0.002,89432.0,89428.0,0.0461]
[1740567657308,0.004,89432.0,89428.0,0.0461]
[1740567657452,0.002,89432.0,89428.0,0.0461]
[1740567657869,0.003,89432.0,89428.0,0.0461]
[1740567658282,0.002,89432.0,89428.0,0.0461]
[1740567658678,0.004,89432.0,89428.0,0.0461]
[1740567658883,0.007,89432.0,89428.0,0.0461]
[1740567659083,0.005,89432.0,89428.0,0.0461]
[1740567659289,0.0004243,89433.0,89428.0,0.0461]
[1740567659484,0.003,89432.0,89428.0,0.0461]
[1740567660091,0.006,89432.0,89428.0,0.0461]
[1740567660598,0.006,89432.0,89429.0,0.0796]
[1740567660813,0.3004243,89433.0,89429.0,0.0796]
[1740567661199,0.002,89432.0,89429.0,0.0796]
[1740567661741,0.3004243,89433.0,89429.0,0.0796]
[1740567662192,0.3004243,89433.0,89429.0,0.0806]
[1740567662388,0.002,89432.0,89429.0,0.0806]
[1740567662601,0.0004243,89433.0,89432.0,0.1469]
[1740567662757,0.01796395,89433.0,89432.0,0.1469]
[1740567663391,0.0004243,89433.0,89432.0,0.1469]
[1740567665078,0.0014243,89433.0,89432.0,0.1489]
[1740567666186,0.0024243,89433.0,89432.0,0.1489]
[1740567666746,0.0024243,89433.0,89432.0,0.148743]
[1740567667758,0.01996146,89433.0,89432.0,0.148743]
[1740567668165,0.01996146,89433.0,89432.0,0.15030831]
[1740567669098,0.01996146,89433.0,89432.0,0.148743]
[1740567669307,0.01996146,89433.0,89432.0,0.15030821]
[1740567669482,0.0024243,89433.0,89432.0,0.15030821]
[1740567670231,0.1006732,89471.0,89435.0,0.0472]
[1740567670449,0.04299732,89470.0,89438.0,0.0809]
[1740567670727,0.04299732,89470.0,89439.0,0.0461]
[1740567670960,0.04299732,89470.0,89442.0,0.0824]
[1740567671091,0.04299732,89470.0,89444.0,0.0829]
[1740567671290,0.04299732,89470.0,89446.0,0.0829]
[1740567671530,0.1076732,89471.0,89448.0,0.0829]
[1740567671731,0.1076732,89471.0,89451.0,0.02]
[1740567671732,0.007,89471.0,89451.0,0.02]
[1740567671976,0.007,89471.0,89452.0,0.1226]
[1740567672492,0.01253469,89467.0,89452.0,0.1226]
[1740567672938,0.3,89476.0,89452.0,0.1226]
[1740567673134,0.007,89471.0,89452.0,0.1226]
[1740567673315,0.06835402,89475.0,89452.0,0.1226]
[1740567673704,0.007,89467.0,89452.0,0.1226]
[1740567673913,0.06835402,89475.0,89452.0,0.1226]
[1740567674085,0.007,89470.0,89452.0,0.1226]
[1740567674490,0.0382354,89469.0,89452.0,0.1226]
[1740567675767,0.007,89467.0,89452.0,0.1226]
[1740567676183,0.0452354,89469.0,89452.0,0.1226]
[1740567676502,0.0522354,89469.0,89452.0,0.1226]
[1740567677102,0.007,89467.0,89452.0,0.1226]
[1740567677306,0.014,89467.0,89452.0,0.1226]
[1740567677606,0.01753438,89465.0,89452.0,0.1226]
[1740567678886,0.02453438,89465.0,89452.0,0.1226]
[1740567679451,0.03153438,89465.0,89452.0,0.1226]
[1740567681382,0.014,89465.0,89452.0,0.1226]
[1740567682083,0.3433,89465.0,89447.0,0.0797]
[1740567682313,0.0162564,89464.0,89447.0,0.0797]
[1740567684015,0.0232564,89464.0,89447.0,0.0797]
[1740567684248,0.31465861,89464.0,89447.0,0.0797]
[1740567684955,0.32165861,89464.0,89447.0,0.0797]
[1740567685185,0.07149715,89463.0,89447.0,0.0797]
[1740567686002,0.01753654,89460.0,89447.0,0.0797]
[1740567687595,0.02353654,89460.0,89447.0,0.0797]
[1740567687820,0.02853654,89460.0,89447.0,0.0797]
[1740567689424,0.02853654,89460.0,89447.0,0.0805484]
[1740567689636,0.37429158,89459.0,89447.0,0.0805484]
[1740567690124,0.3,89459.0,89447.0,0.0805484]
[1740567690580,0.01753654,89460.0,89447.0,0.0805484]
[1740567690822,0.005,89459.0,89447.0,0.0805484]